fUSD/lending_fUSD_20251226
["ID","MTS","AMOUNT","RATE_DAILY","PERIOD"]
[399848325,1766737842343,-554.37,0.00041669,30]
[399848326,1766737842353,-237.39553425,0.00041675,14]
[399848327,1766737842363,-1000.0,0.00041693,13]
[399848328,1766737842373,-300.261616,0.00041759,107]
[399848329,1766737842383,-300.0,0.00041863,30]
[399848330,1766737842394,-1220.11,0.00041863,30]
[399848331,1766737842404,-554.37,0.00041863,30]
[399848332,1766737842414,-554.37,0.00041863,30]
[399848333,1766737842424,-1220.66,0.00041863,30]
[399848334,1766737842434,-150.0,0.00041863,30]
[399848335,1766737842444,-333.08,0.00041863,30]
[399848336,1766737842454,-150.0,0.00041863,30]
[399848337,1766737842464,-301.31,0.00041863,30]
[399848338,1766737842475,-150.0,0.00041863,30]
[399848339,1766737842484,-1220.66,0.00041863,30]
[399848340,1766737842495,-554.37,0.00041863,30]
[399848341,1766737842506,-150.0,0.00041863,30]
[399848342,1766737842517,-1220.66,0.00041863,30]
[399848343,1766737842527,-554.37,0.00041863,30]
[399848344,1766737842538,-150.0,0.00041863,30]
[399848345,1766737842548,-150.0,0.00041863,30]
[399848346,1766737842559,-150.0,0.00041863,30]
[399848347,1766737842568,-547.01,0.00041863,30]
[399848348,1766737842579,-1220.66,0.00041863,30]
[399848350,1766737842588,-150.0,0.00041863,30]
[399848352,1766737842598,-150.0,0.00041863,30]
[399848353,1766737842608,-1220.66,0.00041863,30]
[399848356,1766737842618,-150.0,0.00041863,30]
[399848359,1766737842628,-1170.71,0.000419,14]
[399848362,1766737842638,-3168.78,0.000419,14]
[399848364,1766737842648,-1000.0,0.00041997,5]
[399848366,1766737842658,-1000.0,0.00041997,22]
[399848368,1766737842669,-500.0,0.00041999,120]
[399848369,1766737842679,-500.0,0.00041999,120]
[399848370,1766737842688,-50000.0,0.00042,42]
[399848371,1766737842699,-50000.0,0.00042,52]
[399848372,1766737842709,-50000.0,0.00042,62]
[399848373,1766737842719,-1076.08560731,0.00042,120]
[399848374,1766737842728,-500.0,0.00042,120]
[399848375,1766737842739,-1000.0,0.00042002,14]
[399848376,1766737842749,-1603.74,0.00042027,120]
[399848377,1766737842759,-1000.0,0.00042081,30]
[399848378,1766737842769,-1000.0,0.00042097,3]
[399848379,1766737842780,-1350.2,0.00042239,7]
[399848380,1766737842791,-1000.0,0.00042258,2]
[399848381,1766737842800,-1600.0,0.00042275,120]
[399848382,1766737842811,-152.38183365,0.0004235,2]
[399848383,1766737842820,-152.38183362,0.00042356,2]
[399848384,1766737842831,-152.38183362,0.00042363,2]
[399848385,1766737842840,-152.38183362,0.00042369,2]
[399848386,1766737842850,-152.38183362,0.00042376,2]
[399848387,1766737842860,-197.07566843,0.00042382,2]
[399848388,1766737842869,-152.38183362,0.00042382,2]
[399848389,1766737842879,-1067.48015165,0.00042383,15]
[399848390,1766737842889,-1000.0,0.00042383,15]
[399848391,1766737842899,-1000.0,0.00042384,120]
[399848392,1766737842909,-1000.0,0.00042384,2]
[399848393,1766737842919,-33512.6718,0.00042384,2]
[399848394,1766737842929,-164.10536588,0.00042384,7]
[399848395,1766737842939,-1000.0,0.00042384,10]
[399848396,1766737842948,-10000.0,0.00042384,2]
[399848397,1766737842959,-5000.0,0.00042384,120]
[399848398,1766737842968,-151.67792003,0.00042431,2]
[399848399,1766737842978,-505.85873594,0.00042431,2]
[399848400,1766737842987,-533.93594502,0.00042449,120]
[399848401,1766737842998,-229.47523099,0.00042449,120]
[399848402,1766737843008,-199442.2437149,0.0004245,2]
[399848403,1766737843018,-6998.4126231,0.0004245,2]
[399848404,1766737843028,-150.0,0.00042451,60]
[399848405,1766737843038,-150.0,0.00042451,2]
[399848406,1766737843048,-1000.0,0.00042465,30]
[399848407,1766737843059,-151.77304176,0.00042466,30]
[399848408,1766737843069,-155.05161452,0.00042466,30]
[399848409,1766737843080,-50000.0,0.0004247,43]
[399848410,1766737843090,-50000.0,0.0004247,53]
[399848411,1766737843100,-1000.0,0.00042472,2]
[399848412,1766737843110,-1000.0,0.00042473,7]
[399848413,1766737843121,-200.0,0.00042473,7]
[399848414,1766737843131,-207.4,0.00042473,7]
[399848415,1766737843141,-215.0738,0.00042473,7]
[399848416,1766737843151,-223.0315306,0.00042473,7]
[399848417,1766737843161,-231.28369723,0.00042473,7]
[399848418,1766737843171,-239.84119403,0.00042473,7]
[399848419,1766737843181,-248.71531821,0.00042473,7]
[399848420,1766737843191,-257.91778498,0.00042473,7]
[399848421,1766737843201,-267.46074303,0.00042473,7]
[399848422,1766737843211,-277.35679052,0.00042473,7]
[399848423,1766737843221,-287.61899177,0.00042473,7]
[399848424,1766737843230,-298.26089446,0.00042473,7]
[399848425,1766737843240,-440.6311978,0.00042473,7]
[399848426,1766737843250,-151.0,0.00042476,14]
[399848427,1766737843260,-194617.73968807,0.00042478,27]
[399848428,1766737843270,-150.0,0.00042478,60]
[399848429,1766737843280,-150.0,0.00042479,120]
[399848430,1766737843290,-150.0,0.00042479,120]
[399848431,1766737843299,-1384.44448878,0.00042479,2]
[399848432,1766737843309,-36536.58502337,0.00042479,30]
[399848433,1766737845806,-281.36696871,0.00015453,2]
[399848434,1766737845816,-212.04159353,0.00015453,2]
[399848435,1766737845826,-500.0,0.00015453,2]
[399848436,1766737845836,-500.0,0.00015453,2]
[399848437,1766737845846,-500.0,0.00015453,2]
[399848438,1766737845855,-500.0,0.00015453,2]
[399848439,1766737845866,-500.0,0.00015453,2]
[399848440,1766737845876,-200.0,0.00015453,2]
[399848441,1766737845886,-500.0,0.00016438,2]
[399848442,1766737845896,-500.0,0.00016438,2]
[399848443,1766737845906,-440.48143776,0.00016438,2]
[399848444,1766737846082,-59.51856224,0.00016438,2]
[399848445,1766737846094,-500.0,0.00016438,2]
[399848446,1766737846119,-500.0,0.00016438,2]
[399848447,1766737846135,-500.0,0.00016438,2]
[399848448,1766737846154,-500.0,0.00016438,2]
[399848449,1766737846164,-500.0,0.00016438,2]
[399848450,1766737846175,-500.0,0.00016438,2]
[399848451,1766737846187,-49.04920513,0.00016438,2]
[399848452,1766737846203,-450.95079487,0.00016438,2]
[399848453,1766737846214,-500.0,0.00016438,2]
[399848454,1766737846226,-184.23565415,0.00016438,2]
[399848455,1766737846237,-500.0,0.00016438,2]
[399848456,1766737846247,-500.0,0.00016438,2]
[399848457,1766737846260,-500.0,0.00016438,2]
[399848458,1766737846273,-500.0,0.00016438,2]
[399848459,1766737846284,-500.0,0.00016438,2]
[399848460,1766737846296,-500.0,0.00016438,2]
[399848461,1766737846307,-500.0,0.00016438,2]
[399848462,1766737846318,-500.0,0.00016438,2]
[399848463,1766737846336,-500.0,0.00016438,2]
[399848464,1766737846347,-500.0,0.00016438,2]
[399848466,1766737846358,-500.0,0.00016438,2]
[399848468,1766737846369,-500.0,0.00016438,2]
[399848469,1766737846381,-500.0,0.00016438,2]
[399848470,1766737846392,-250.0,0.00021918,2]
[399848471,1766737846405,-2430.0,0.0002194,2]
[399848472,1766737846416,-2430.0,0.0002494,2]
[399848473,1766737846427,-2430.0,0.0002794,2]
[399848474,1766737846439,-2430.0,0.0003094,2]
[399848475,1766737846450,-500.0,0.00032877,7]
[399848476,1766737846463,-500.0,0.00032877,7]
[399848477,1766737846474,-500.0,0.00032877,7]
[399848478,1766737846485,-500.0,0.00032877,7]
[399848479,1766737846502,-500.0,0.00032877,7]
[399848480,1766737846514,-500.0,0.00032877,7]
[399848481,1766737846525,-500.0,0.00032877,7]
[399848482,1766737846536,-500.0,0.00032877,7]
[399848484,1766737846547,-500.0,0.00032877,7]
[399848486,1766737846559,-500.0,0.00032877,7]
[399848487,1766737846571,-500.0,0.00032877,7]
[399848488,1766737846583,-500.0,0.00032877,7]
[399848489,1766737846593,-500.0,0.00032877,7]
[399848490,1766737846604,-500.0,0.00032877,7]
[399848491,1766737846616,-310.88601276,0.00032877,7]
[399848492,1766737846627,-500.0,0.00032877,7]
[399848493,1766737846638,-2430.0,0.0003394,2]
[399848494,1766737846649,-2182.273,0.0003694,2]
[399848495,1766737846660,-554.37,0.00040847,2]
[399848496,1766737846671,-1220.66,0.00041863,30]
[399848497,1766737846681,-155014.94553822,0.00042479,30]
[399848511,1766738352307,-500.0,0.00013773,2]
[399848512,1766738366707,-150.0,0.00017,7]
[399848513,1766738384219,-600.0,0.00014079,2]
[399848514,1766738384242,-300.0,0.00014386,2]
[399848515,1766738384267,-419.89195242,0.00014926,2]
[399848516,1766738384291,-5500.0,0.00015,2]
[399848517,1766738384313,-178.92659946,0.0001505,2]
[399848518,1766738384337,-300.0,0.00015149,2]
[399848519,1766738384361,-300.0,0.0001515,2]
[399848520,1766738384384,-2500.0,0.0001515,2]
[399848521,1766738384407,-195.0,0.0001515,2]
[399848522,1766738384431,-195.0,0.0001515,2]
[399848523,1766738384457,-250.0,0.0001515,2]
[399848524,1766738384480,-600.0,0.0001515,2]
[399848525,1766738384504,-4942.68426975,0.00015187,2]
[399848526,1766738384535,-500.0,0.00015254,2]
[399848527,1766738384564,-500.0,0.00015254,2]
[399848528,1766738384592,-500.0,0.00015254,2]
[399848529,1766738384618,-500.0,0.00015254,2]
[399848530,1766738384644,-500.0,0.00015254,2]
[399848531,1766738384671,-500.0,0.00015254,2]
[399848532,1766738384696,-500.0,0.00015254,2]
[399848533,1766738384721,-500.0,0.00015254,2]
[399848534,1766738384747,-500.0,0.00015254,2]
[399848535,1766738384772,-500.0,0.00015254,2]
[399848536,1766738384799,-500.0,0.00015254,2]
[399848537,1766738384827,-500.0,0.00015254,2]
[399848538,1766738384855,-500.0,0.00015254,2]
[399848539,1766738384882,-500.0,0.00015254,2]
[399848540,1766738384908,-500.0,0.00015254,2]
[399848541,1766738384933,-500.0,0.00015254,2]
[399848542,1766738384958,-500.0,0.00015254,2]
[399848543,1766738384983,-292.16420307,0.00015254,2]
[399848544,1766738385008,-500.0,0.00015254,2]
[399848545,1766738385033,-500.0,0.00015254,2]
[399848546,1766738385059,-500.0,0.00015254,2]
[399848547,1766738385085,-500.0,0.00015254,2]
[399848548,1766738385111,-500.0,0.00015254,2]
[399848549,1766738385137,-500.0,0.00015254,2]
[399848550,1766738385160,-33512.6718,0.00015255,2]
[399848551,1766738385187,-360067.6611753,0.00015355,2]
[399848553,1766738657518,314.02,9.513e-05,2]
[399848554,1766738657699,314.02,0.00010014,2]
[399848555,1766738657885,314.02,0.00010515,2]
[399848556,1766738658084,314.02,0.00011015,2]
[399848557,1766738658277,314.02,0.00011516,2]
[399848558,1766738662755,-288.2188704,0.00012017,2]
[399848560,1766738749987,-25.8011296,0.00012017,2]
[399848561,1766738750012,-314.02,0.00012517,2]
[399848562,1766738750037,-314.02,0.00013018,2]
[399848563,1766738750064,-250.0,0.00013218,2]
[399848564,1766738750089,-314.02,0.00013519,2]
[399848565,1766738750112,-201.41739586,0.00013773,2]
[399848566,1766738750137,-314.02,0.00014019,2]
[399848567,1766738750161,-314.02,0.0001452,2]
[399848568,1766738764342,-314.02,0.00015021,2]
[399848569,1766738764367,-652.661,0.00015048,2]
[399848570,1766738764394,-477.4968443,0.0001532,2]
[399848571,1766738764420,-300.0,0.00015352,2]
[399848572,1766738764446,-1200.0,0.00015352,2]
[399848573,1766738764471,-9999.99,0.00015353,2]
[399848574,1766738764850,-9999.99,0.00015353,2]
[399848575,1766738764886,-12287.56,0.00015353,2]
[399848576,1766738764912,-278.0,0.00015354,2]
[399848577,1766738764938,-500.0,0.00015354,2]
[399848578,1766738764968,-533.93594502,0.00015354,2]
[399848579,1766738764997,-500.0,0.00015354,2]
[399848580,1766738765026,-500.0,0.00015354,2]
[399848581,1766738765054,-310.24046701,0.00015354,2]
[399848582,1766738765085,-53098.78721821,0.00015355,2]
[399848591,1766739031829,-288.2188704,0.00013773,2]
[399848592,1766739031840,-300.0,0.00015254,2]
[399848593,1766739031851,-226.0,0.00015254,2]
[399848594,1766739031861,-1200.0,0.00015254,2]
[399848595,1766739031872,-644.3811296,0.00015255,2]
[399848596,1766739031884,-229633.16544443,0.00015255,2]
[399848597,1766739031909,-28149.99384767,0.00015255,2]
[399848598,1766739031922,-5378.53161582,0.00015255,2]
[399848599,1766739031998,-1046.51182598,0.00015255,2]
[399848600,1766739032048,-485.01153519,0.00015255,2]
[399848602,1766739032060,-302.0,0.00015255,2]
[399848620,1766739037915,-46346.80758099,0.00015255,2]
[399848621,1766739038020,-4834.27460635,0.00015255,2]
[399848622,1766739038034,-84442.08630309,0.00015255,2]
[399848623,1766739038046,-674.83123227,0.00015255,2]
[399848624,1766739038059,-658.11601187,0.00015255,2]
[399848647,1766739039908,-597404.28886674,0.00015255,2]
[399848648,1766739039918,-2479.08144885,0.00015321,2]
[399848649,1766739039928,-500.0,0.00015354,2]
[399848650,1766739039939,-229.47523099,0.00015354,2]
[399848651,1766739039949,-173.05731677,0.00015421,2]
[399848652,1766739039959,-314.02,0.00015521,2]
[399848653,1766739039970,-98011.85270763,0.00016,2]
[399848654,1766739039980,-314.02,0.00016022,2]
[399848655,1766739039990,-500.0,0.00016438,2]
[399848656,1766739039999,-198.64860812,0.00016438,2]
[399848657,1766739040013,-500.0,0.00016438,2]
[399848658,1766739040023,-500.0,0.00016438,2]
[399848659,1766739040033,-353.80396157,0.00016438,2]
[399848660,1766739040044,-314.02,0.00016523,2]
[399848661,1766739040054,-288.54493564,0.00016523,3]
[399848662,1766739040063,-200.0,0.00016891,2]
[399848663,1766739040073,-200.41170239,0.00016891,2]
[399848664,1766739040082,-1000.0,0.00016963,2]
[399848665,1766739040092,-150.0,0.00016964,2]
[399848666,1766739040102,-150.0,0.00017,7]
[399848667,1766739040112,-314.02,0.00017023,2]
[399848668,1766739040122,-477.4968443,0.00017028,2]
[399848669,1766739040132,-168.0,0.00017467,2]
[399848670,1766739040141,-314.02,0.00017524,2]
[399848671,1766739040151,-168.0,0.00017539,2]
[399848672,1766739040160,-168.0,0.00017585,2]
[399848673,1766739040170,-168.0,0.0001759,2]
[399848674,1766739040180,-168.0,0.00017592,2]
[399848675,1766739040190,-168.0,0.00017603,2]
[399848676,1766739040203,-168.0,0.00017691,2]
[399848677,1766739040213,-168.0,0.00017918,2]
[399848678,1766739040223,-314.02,0.00018025,2]
[399848679,1766739040232,-168.0,0.00018069,2]
[399848680,1766739040242,-168.0,0.00018086,2]
[399848681,1766739040251,-1852.42,0.00018096,2]
[399848682,1766739040261,-168.0,0.00018192,2]
[399848683,1766739040271,-192.84380237,0.00018316,2]
[399848684,1766739040280,-2479.08144876,0.00018327,2]
[399848685,1766739040290,-168.0,0.00018361,2]
[399848686,1766739040299,-168.0,0.00018391,2]
[399848687,1766739040309,-168.0,0.00018394,2]
[399848688,1766739040319,-74535.38,0.00018405,2]
[399848689,1766739040328,-250.83930928,0.0001841,2]
[399848691,1766739040337,-166.66,0.00018416,2]
[399848692,1766739040347,-314.02,0.00018525,2]
[399848693,1766739040357,-168.0,0.00018722,2]
[399848694,1766739040367,-477.4968443,0.00018736,2]
[399848695,1766739040376,-168.0,0.00018759,2]
[399848696,1766739040386,-168.0,0.00018805,2]
[399848697,1766739040399,-949.77,0.0001898,2]
[399848698,1766739040409,-166.66,0.00019024,2]
[399848699,1766739040419,-314.02,0.00019026,2]
[399848700,1766739040430,-168.0,0.00019076,2]
[399848701,1766739040439,-168.0,0.00019188,2]
[399848702,1766739040449,-119421.52,0.00019474,2]
[399848703,1766739040459,-166.66,0.00019632,2]
[399848704,1766739040469,-166.66,0.0002024,2]
[399848705,1766739040479,-999.0,0.00020358,3]
[399848706,1766739040489,-477.4968443,0.00020444,2]
[399848707,1766739040498,-166.66,0.00020848,2]
[399848708,1766739040508,-151.33873241,0.0002116,2]
[399848709,1766739040517,-2479.08144876,0.00021334,2]
[399848710,1766739040527,-166.66,0.00021456,2]
[399848711,1766739040537,-13607.8061009,0.0002281,2]
[399848712,1766739040547,-2479.08144876,0.0002434,2]
[399848713,1766739040557,-612.0,0.00024643,2]
[399848714,1766739040567,-1610.0,0.00024643,2]
[399848715,1766739040576,-432.0,0.00024643,2]
[399848716,1766739040586,-2430.0,0.00024643,2]
[399848717,1766739040596,-1000.0,0.00024658,2]
[399848718,1766739040605,-311.82,0.000248,14]
[399848719,1766739040615,-271366.29477,0.000248,3]
[399848720,1766739040624,-13607.8061009,0.00025269,2]
[399848721,1766739040634,-500.0,0.00025987,2]
[399848722,1766739040644,-500.0,0.00025988,2]
[399848723,1766739040654,-500.0,0.00025989,2]
[399848724,1766739040664,-499.9999,0.0002599,2]
[399848725,1766739040674,-2479.08144876,0.00027347,2]
[399848726,1766739040684,-300.0,0.00027397,2]
[399848727,1766739040694,-612.0,0.00027643,2]
[399848728,1766739040704,-1610.0,0.00027643,2]
[399848729,1766739040714,-432.0,0.00027643,2]
[399848730,1766739040728,-2430.0,0.00027643,2]
[399848731,1766739040738,-13607.8061009,0.00027728,2]
[399848732,1766739040748,-493.8,0.00030137,3]
[399848733,1766739040758,-13607.8061009,0.00030186,2]
[399848734,1766739040768,-2479.08144876,0.00030353,2]
[399848735,1766739040791,-612.0,0.00030643,2]
[399848736,1766739040805,-1610.0,0.00030643,2]
[399848737,1766739040815,-432.0,0.00030643,2]
[399848738,1766739040826,-2430.0,0.00030643,2]
[399848739,1766739040836,-167.43,0.000307,30]
[399848740,1766739040846,-946.5,0.00031357,30]
[399848741,1766739040857,-259.85,0.000315,14]
[399848742,1766739040867,-192.25,0.00032877,14]
[399848743,1766739040878,-500.0,0.00032877,7]
[399848744,1766739040888,-500.0,0.00032877,7]
[399848745,1766739040898,-500.0,0.00032877,7]
[399848746,1766739040909,-500.0,0.00032877,7]
[399848747,1766739040919,-500.0,0.00032877,7]
[399848748,1766739040929,-500.0,0.00032877,7]
[399848749,1766739040940,-310.88601276,0.00032877,7]
[399848750,1766739040951,-500.0,0.00032877,7]
[399848751,1766739040962,-500.0,0.00032877,7]
[399848752,1766739040973,-500.0,0.00032877,7]
[399848753,1766739040983,-500.0,0.00032877,7]
[399848754,1766739040994,-500.0,0.00032877,7]
[399848755,1766739041004,-500.0,0.00032877,7]
[399848756,1766739041014,-500.0,0.00032877,7]
[399848757,1766739041024,-500.0,0.00032877,7]
[399848758,1766739041035,-500.0,0.00032877,7]
[399848759,1766739041045,-500.0,0.00032877,7]
[399848760,1766739041056,-500.0,0.00032877,7]
[399848761,1766739041066,-500.0,0.00032877,7]
[399848762,1766739041077,-500.0,0.00032877,7]
[399848763,1766739041088,-3168.78,0.000329,14]
[399848764,1766739041098,-1170.71,0.000329,14]
[399848765,1766739041108,-192.25,0.00033151,14]
[399848766,1766739041118,-2479.08144876,0.0003336,2]
[399848767,1766739041132,-192.26,0.00033425,14]
[399848768,1766739041142,-1610.0,0.00033643,2]
[399848769,1766739041152,-432.0,0.00033643,2]
[399848770,1766739041163,-2430.0,0.00033643,2]
[399848771,1766739041174,-1000.0,0.00035041,2]
[399848772,1766739041184,-505.78,0.0003518,30]
[399848773,1766739041194,-151.0,0.0003561,14]
[399848774,1766739041204,-1000.0,0.00035613,25]
[399848775,1766739041215,-877.23,0.00035616,5]
[399848776,1766739041225,-1000.0,0.00035996,16]
[399848777,1766739041235,-1000.0,0.00036355,2]
[399848778,1766739041246,-2479.08144876,0.00036366,2]
[399848779,1766739041257,-1610.0,0.00036643,2]
[399848780,1766739041267,-432.0,0.00036643,2]
[399848781,1766739041279,-2182.273,0.00036643,2]
[399848782,1766739041290,-1000.0,0.0003669,11]
[399848783,1766739041300,-1000.0,0.00036996,17]
[399848784,1766739041310,-237.39553425,0.00037091,14]
[399848785,1766739041321,-161.86,0.00037167,2]
[399848786,1766739041332,-1000.0,0.00037669,2]
[399848787,1766739041342,-3168.78,0.000377,14]
[399848788,1766739041353,-1170.71,0.000377,14]
[399848789,1766739041363,-1067.0,0.0003783,20]
[399848790,1766739041373,-1000.0,0.00037996,18]
[399848791,1766739041383,-1000.0,0.00037996,28]
[399848792,1766739041393,-152.88,0.00038165,14]
[399848793,1766739041403,-157.38311085,0.00038219,7]
[399848794,1766739041413,-155.15685309,0.00038219,7]
[399848795,1766739041423,-159.10512061,0.00038219,7]
[399848796,1766739041433,-156.76302164,0.00038219,7]
[399848797,1766739041443,-162.26054214,0.00038219,7]
[399848798,1766739041454,-152.57737943,0.00038219,7]
[399848799,1766739041464,-150.0,0.00038219,7]
[399848800,1766739041474,-1067.0,0.0003822,20]
[399848801,1766739041483,-1000.0,0.00038354,26]
[399848802,1766739041499,-740.7,0.00038356,38]
[399848803,1766739041509,-300.0,0.00038356,120]
[399848804,1766739041520,-300.0,0.00038356,120]
[399848805,1766739041531,-300.0,0.00038356,120]
[399848806,1766739041540,-300.0,0.00038356,120]
[399848807,1766739041551,-2000.0,0.000384,2]
[399848808,1766739041561,-1067.0,0.0003861,20]
[399848809,1766739041571,-150.0,0.0003861,30]
[399848810,1766739041582,-652.662,0.00038786,52]
[399848811,1766739041593,-1000.0,0.00038983,2]
[399848812,1766739041603,-1000.0,0.00038986,4]
[399848813,1766739041613,-1000.0,0.00038996,29]
[399848814,1766739041623,-1000.0,0.00038996,19]
[399848815,1766739041635,-1067.0,0.00039,20]
[399848816,1766739041645,-2479.08144876,0.00039373,2]
[399848817,1766739041655,-1603.74,0.00039389,120]
[399848818,1766739041666,-1067.0,0.0003939,20]
[399848819,1766739041677,-505.78,0.00039506,120]
[399848820,1766739041688,-312.28509841,0.00039535,2]
[399848821,1766739041699,-162179.1674378,0.00039582,2]
[399848822,1766739041710,-150.0,0.00039635,7]
[399848823,1766739041720,-1610.0,0.00039643,2]
[399848824,1766739041735,-432.0,0.00039643,2]
[399848825,1766739041747,-3168.78,0.000397,14]
[399848826,1766739041758,-1170.71,0.000397,14]
[399848827,1766739041771,-1067.0,0.0003978,20]
[399848828,1766739041781,-1000.0,0.00039999,12]
[399848829,1766739041793,-1000.0,0.00039999,30]
[399848830,1766739041805,-3000.0,0.0004,88]
[399848831,1766739041816,-500.0,0.0004,120]
[399848832,1766739041826,-1067.0,0.0004017,20]
[399848833,1766739041837,-1000.0,0.00040297,2]
[399848834,1766739041847,-1000.0,0.00040318,6]
[399848835,1766739041862,-200.0,0.00040329,2]
[399848836,1766739041873,-207.4,0.00040329,2]
[399848837,1766739041884,-215.0738,0.00040329,2]
[399848838,1766739041894,-223.0315306,0.00040329,2]
[399848839,1766739041905,-231.28369723,0.00040329,2]
[399848840,1766739041915,-239.84119403,0.00040329,2]
[399848841,1766739041926,-248.71531821,0.00040329,2]
[399848842,1766739041937,-257.91778498,0.00040329,2]
[399848843,1766739041947,-267.46074303,0.00040329,2]
[399848844,1766739041958,-277.35679052,0.00040329,2]
[399848845,1766739041969,-150.0,0.00040355,120]
[399848846,1766739041980,-1603.74,0.00040485,120]
[399848847,1766739041991,-500.0,0.000405,120]
[399848848,1766739042001,-150.0,0.00040932,60]
[399848849,1766739042011,-150.0,0.00040932,60]
[399848850,1766739042021,-150.0,0.00040932,60]
[399848851,1766739042031,-150.0,0.00040932,60]
[399848852,1766739042043,-150.0,0.00040932,60]
[399848853,1766739042054,-150.0,0.00040932,60]
[399848854,1766739042064,-150.0,0.00040932,60]
[399848855,1766739042076,-150.0,0.00040932,60]
[399848856,1766739042086,-500.0,0.00040932,60]
[399848857,1766739042098,-150.0,0.00040932,60]
[399848858,1766739042108,-150.0,0.00040932,60]
[399848859,1766739042120,-150.0,0.00040959,60]
[399848860,1766739042130,-150.0,0.00040959,60]
[399848861,1766739042140,-150.0,0.00040959,60]
[399848862,1766739042151,-150.0,0.00040959,60]
[399848863,1766739042160,-150.0,0.00040959,60]
[399848864,1766739042170,-150.0,0.00040959,60]
[399848865,1766739042180,-506.76955547,0.00040959,60]
[399848866,1766739042191,-150.0,0.00040959,60]
[399848867,1766739042201,-150.0,0.00040959,60]
[399848868,1766739042212,-200.0,0.00040987,60]
[399848869,1766739042222,-200.0,0.00040987,60]
[399848870,1766739042236,-200.0,0.00040987,60]
[399848871,1766739042247,-150.0,0.00040987,60]
[399848872,1766739042258,-150.0,0.00040987,60]
[399848873,1766739042269,-1000.0,0.00040996,21]
[399848874,1766739042279,-50000.0,0.00041,41]
[399848875,1766739042289,-50000.0,0.00041,51]
[399848876,1766739042300,-50000.0,0.00041,31]
[399848877,1766739042310,-10012.37654199,0.00041,120]
[399848878,1766739042320,-2999.0,0.00041,88]
[399848879,1766739042330,-500.0,0.00041,120]
[399848880,1766739042340,-150.0,0.00041014,60]
[399848881,1766739042351,-150.0,0.00041014,60]
[399848882,1766739042361,-764.7,0.00041041,7]
[399848883,1766739042372,-1220.66,0.00041041,2]
[399848884,1766739042383,-150.0,0.00041041,2]
[399848885,1766739042393,-150.0,0.00041041,2]
[399848886,1766739042403,-1220.66,0.00041041,2]
[399848887,1766739042414,-1220.66,0.00041041,2]
[399848888,1766739042424,-1220.66,0.00041041,2]
[399848889,1766739042434,-1220.66,0.00041041,2]
[399848890,1766739042445,-1220.66,0.00041041,2]
[399848891,1766739042455,-1220.66,0.00041041,2]
[399848892,1766739042465,-1220.66,0.00041041,2]
[399848893,1766739042475,-150.0,0.00041042,60]
[399848894,1766739042485,-150.0,0.00041042,60]
[399848895,1766739042495,-150.0,0.0004105,7]
[399848896,1766739042506,-312.2850984,0.00041061,120]
[399848897,1766739042516,-250.0,0.00041069,60]
[399848898,1766739042527,-250.0,0.00041069,60]
[399848899,1766739042536,-1000.0,0.00041095,20]
[399848900,1766739042547,-316.1825669,0.00041096,2]
[399848901,1766739042557,-200.0,0.00041096,20]
[399848902,1766739042568,-200.0,0.00041096,20]
[399848903,1766739042578,-767.80475971,0.00041205,7]